fUST/lending_fUST_20240921
["ID","MTS","AMOUNT","RATE_DAILY","PERIOD"]
[338694147,1726879851004,-500.0,0.00014845,2]
[338694148,1726879851013,-500.0,0.00014845,2]
[338694149,1726879851022,-500.0,0.00014845,2]
[338694150,1726879851033,-500.0,0.00014845,2]
[338694151,1726879851043,-518.88,0.00014845,2]
[338694152,1726879851055,-500.0,0.00014845,2]
[338694153,1726879851064,-500.0,0.00014845,2]
[338694154,1726879851074,-500.0,0.00014845,2]
[338694155,1726879851083,-500.0,0.00014845,2]
[338694156,1726879851092,-500.0,0.00014845,2]
[338694157,1726879851103,-500.0,0.00014845,2]
[338694158,1726879851114,-1007.68,0.00014845,2]
[338694159,1726879851125,-500.0,0.00014845,2]
[338694160,1726879851135,-500.0,0.00014845,2]
[338694161,1726879851145,-500.0,0.00014845,2]
[338694162,1726879851155,-447.15,0.00014845,2]
[338694163,1726879851166,-500.0,0.00014845,2]
[338694164,1726879851175,-500.0,0.00014845,2]
[338694165,1726879851187,-500.0,0.00014845,2]
[338694166,1726879851197,-500.0,0.00014845,2]
[338694167,1726879851207,-465.71928429,0.00014845,2]
[338694168,1726879851217,-500.0,0.00014845,2]
[338694169,1726879851229,-500.0,0.00014845,2]
[338694170,1726879851241,-500.0,0.00014845,2]
[338694171,1726879851251,-500.0,0.00014845,2]
[338694172,1726879851260,-500.0,0.00014845,2]
[338694173,1726879851269,-500.0,0.00014845,2]
[338694174,1726879851279,-500.0,0.00014845,2]
[338694175,1726879851287,-500.0,0.00014845,2]
[338694176,1726879851297,-500.0,0.00014845,2]
[338694177,1726879851306,-500.0,0.00014845,2]
[338694178,1726879851315,-500.0,0.00014845,2]
[338694179,1726879851325,-500.0,0.00014845,2]
[338694180,1726879851336,-500.0,0.00014845,2]
[338694181,1726879851346,-500.0,0.00014845,2]
[338694182,1726879851356,-633.1,0.00014845,2]
[338694183,1726879851366,-500.0,0.00014845,2]
[338694184,1726879851375,-692.85,0.00014845,2]
[338694185,1726879851384,-500.0,0.00014845,2]
[338694186,1726879851395,-500.0,0.00014845,2]
[338694187,1726879851405,-730.37,0.00014845,2]
[338694188,1726879851420,-500.0,0.00014845,2]
[338694189,1726879851437,-500.0,0.00014845,2]
[338694190,1726879851447,-500.0,0.00014845,2]
[338694191,1726879851456,-500.0,0.00014845,2]
[338694192,1726879851465,-500.0,0.00014845,2]
[338694193,1726879851474,-500.0,0.00014845,2]
[338694194,1726879851483,-500.0,0.00014845,2]
[338694195,1726879851492,-280.79,0.00014845,2]
[338694196,1726879851502,-500.0,0.00014845,2]
[338694197,1726879851511,-500.0,0.00014845,2]
[338694198,1726879851520,-500.0,0.00014845,2]
[338694199,1726879851530,-500.0,0.00014845,2]
[338694200,1726879851539,-500.0,0.00014845,2]
[338694201,1726879851549,-500.0,0.00014845,2]
[338694202,1726879851558,-500.0,0.00014845,2]
[338694203,1726879851568,-515.17,0.00014845,2]
[338694204,1726879851577,-500.0,0.00014845,2]
[338694205,1726879851586,-500.0,0.00014845,2]
[338694206,1726879851596,-500.0,0.00014845,2]
[338694207,1726879851605,-500.0,0.00014845,2]
[338694208,1726879851615,-431.20530052,0.00014845,2]
[338694209,1726879851624,-500.0,0.00014845,2]
[338694210,1726879851633,-500.0,0.00014845,2]
[338694211,1726879851643,-500.0,0.00014845,2]
[338694212,1726879851652,-500.0,0.00014845,2]
[338694213,1726879851661,-500.0,0.00014845,2]
[338694214,1726879851672,-500.0,0.00014845,2]
[338694215,1726879851681,-424.71,0.00014845,2]
[338694216,1726879851691,-536.86256777,0.00014845,2]
[338694217,1726879851702,-500.0,0.00014845,2]
[338694218,1726879851714,-500.0,0.00014845,2]
[338694219,1726879851723,-500.0,0.00014845,2]
[338694220,1726879851734,-500.0,0.00014845,2]
[338694221,1726879851744,-172.58,0.00014845,2]
[338694222,1726879851753,-500.0,0.00014845,2]
[338694223,1726879851763,-151.0,0.00014845,2]
[338694224,1726879851773,-515.7772724,0.00014845,2]
[338694225,1726879851783,-500.0,0.00014845,2]
[338694226,1726879851792,-500.0,0.00014845,2]
[338694227,1726879851803,-500.0,0.00014845,2]
[338694228,1726879851813,-500.0,0.00014845,2]
[338694229,1726879851825,-500.0,0.00014845,2]
[338694230,1726879851840,-500.0,0.00014845,2]
[338694231,1726879851849,-200.0,0.00014845,2]
[338694232,1726879851860,-500.0,0.00014845,2]
[338694233,1726879851871,-500.0,0.00014845,2]
[338694234,1726879851881,-625.64,0.00014845,2]
[338694235,1726879851891,-500.0,0.00014845,2]
[338694236,1726879851901,-162.02,0.00014845,2]
[338694237,1726879851913,-500.0,0.00014845,2]
[338694238,1726879851926,-500.0,0.00014845,2]
[338694239,1726879851936,-266.55234297,0.00014845,2]
[338694240,1726879851946,-500.0,0.00014845,2]
[338694241,1726879851957,-610.33,0.00014845,2]
[338694242,1726879851968,-321.42921908,0.00014845,2]
[338694243,1726879851979,-408.21,0.00014845,2]
[338694244,1726879851988,-151.0,0.00014845,2]
[338694245,1726879851999,-312.84469,0.00014845,2]
[338694246,1726879852009,-500.0,0.00014845,2]
[338694247,1726879852019,-284.037968,0.00014845,2]
[338694248,1726879852030,-312.84469,0.00014845,2]
[338694249,1726879852041,-500.0,0.00014845,2]
[338694250,1726879852050,-265.278706,0.00014845,2]
[338694251,1726879852061,-500.0,0.00014845,2]
[338694252,1726879852072,-500.0,0.00014845,2]
[338694253,1726879852083,-500.0,0.00014845,2]
[338694254,1726879852094,-265.278706,0.00014845,2]
[338694255,1726879852104,-475.561999,0.00014845,2]
[338694256,1726879852113,-500.0,0.00014845,2]
[338694257,1726879852123,-475.561999,0.00014845,2]
[338694258,1726879852133,-151.0,0.00014845,2]
[338694259,1726879852142,-500.0,0.00014845,2]
[338694260,1726879852151,-500.0,0.00014845,2]
[338694261,1726879852160,-500.0,0.00014845,2]
[338694262,1726879852172,-500.0,0.00014845,2]
[338694263,1726879852182,-500.0,0.00014845,2]
[338694264,1726879852191,-500.0,0.00014845,2]
[338694265,1726879852200,-705.85,0.00014845,2]
[338694266,1726879852209,-500.0,0.00014845,2]
[338694267,1726879852218,-500.0,0.00014845,2]
[338694268,1726879852228,-7139.2745635,0.00014845,2]
[338694269,1726879852237,-500.0,0.00014845,2]
[338694270,1726879852246,-500.0,0.00014845,2]
[338694271,1726879852255,-151.0,0.00014845,2]
[338694272,1726879852265,-151.0,0.00014852,2]
[338694273,1726879852275,-500.0,0.00014865,2]
[338694274,1726879852284,-500.0,0.00014865,2]
[338694275,1726879852295,-500.0,0.00014865,2]
[338694276,1726879852305,-830.32,0.00014865,2]
[338694277,1726879852315,-500.0,0.00014866,2]
[338694278,1726879852325,-500.0,0.00014866,2]
[338694279,1726879852336,-500.0,0.00014866,2]
[338694280,1726879852349,-500.0,0.00014866,2]
[338694281,1726879852358,-500.0,0.00014866,2]
[338694282,1726879852368,-897.55,0.00014866,2]
[338694283,1726879852378,-500.0,0.00014866,2]
[338694284,1726879852387,-500.0,0.00014866,2]
[338694285,1726879852397,-455.14504147,0.00014866,2]
[338694286,1726879852407,-500.0,0.00014866,2]
[338694287,1726879852421,-500.0,0.00014866,2]
[338694288,1726879852431,-500.0,0.00014866,2]
[338694289,1726879852443,-298.46684654,0.00014866,2]
[338694290,1726879852453,-500.0,0.00014866,2]
[338694291,1726879852464,-603.39,0.00014866,2]
[338694292,1726879852511,-500.0,0.00014866,2]
[338694293,1726879852520,-500.0,0.00014866,2]
[338694294,1726879852529,-568.58,0.00014866,2]
[338694295,1726879852538,-500.0,0.00014866,2]
[338694296,1726879852547,-569.83,0.00014866,2]
[338694297,1726879852556,-500.0,0.00014866,2]
[338694298,1726879852565,-500.0,0.00014866,2]
[338694299,1726879852576,-500.0,0.00014866,2]
[338694300,1726879852585,-500.0,0.00014866,2]
[338694301,1726879852595,-500.0,0.00014866,2]
[338694302,1726879852604,-500.0,0.00014866,2]
[338694303,1726879852615,-501.58793847,0.00014866,2]
[338694304,1726879852627,-500.0,0.00014866,2]
[338694305,1726879852637,-184.609961,0.00014866,2]
[338694306,1726879852647,-184.609961,0.00014866,2]
[338694307,1726879852656,-151.0,0.00014866,2]
[338694308,1726879852666,-626.816533,0.00014866,2]
[338694309,1726879852676,-626.816533,0.00014866,2]
[338694310,1726879852686,-1000.0,0.00014886,2]
[338694311,1726879852695,-306.0,0.000149,2]
[338694312,1726879852704,-1343.317,0.00014915,2]
[338694313,1726879852713,-1817.1011316,0.00014915,2]
[338694314,1726879852723,-198.03829748,0.0001493,2]
[338694315,1726879852734,-540.117249,0.00014936,2]
[338694316,1726879852743,-1000.0,0.00015029,2]
[338694317,1726879852754,-151.0,0.00015039,2]
[338694318,1726879852763,-151.0,0.00015039,2]
[338694319,1726879852772,-194.746917,0.00015039,2]
[338694320,1726879852781,-194.746917,0.00015039,2]
[338694321,1726879852791,-377.27972,0.00015039,2]
[338694322,1726879852800,-151.0,0.00015039,2]
[338694323,1726879852810,-151.0,0.00015039,2]
[338694324,1726879852819,-250.081037,0.00015039,2]
[338694325,1726879852830,-151.0,0.00015039,2]
[338694326,1726879852839,-2439.62131183,0.00015049,2]
[338694327,1726879852848,-1473.865631,0.00015068,2]
[338694328,1726879852857,-500.0,0.00015116,2]
[338694329,1726879852866,-500.0,0.00015116,2]
[338694330,1726879852876,-500.0,0.00015116,2]
[338694331,1726879852885,-659.61,0.00015116,2]
[338694332,1726879852894,-500.0,0.00015116,2]
[338694333,1726879852903,-500.0,0.00015116,2]
[338694334,1726879852915,-500.0,0.00015116,2]
[338694335,1726879852926,-523.6,0.00015116,2]
[338694336,1726879852936,-500.0,0.00015116,2]
[338694337,1726879852947,-500.0,0.00015116,2]
[338694338,1726879852957,-500.0,0.00015116,2]
[338694339,1726879852967,-500.0,0.00015116,2]
[338694340,1726879852978,-518.96,0.00015116,2]
[338694341,1726879852987,-304.03323216,0.00015116,2]
[338694342,1726879852997,-500.0,0.00015116,2]
[338694343,1726879853005,-500.0,0.00015116,2]
[338694344,1726879853014,-500.0,0.00015116,2]
[338694345,1726879853023,-500.0,0.00015116,2]
[338694346,1726879853032,-500.0,0.00015116,2]
[338694347,1726879853041,-500.0,0.00015116,2]
[338694348,1726879853051,-500.0,0.00015116,2]
[338694349,1726879853061,-500.0,0.00015116,2]
[338694350,1726879853070,-500.0,0.00015118,2]
[338694351,1726879853079,-500.0,0.00015118,2]
[338694352,1726879853089,-169.15526229,0.00015118,2]
[338694353,1726879853099,-500.0,0.00015118,2]
[338694354,1726879853110,-625.17,0.00015118,2]
[338694355,1726879853121,-500.0,0.00015118,2]
[338694356,1726879853131,-500.0,0.00015118,2]
[338694357,1726879853141,-667.31,0.00015118,2]
[338694358,1726879853153,-500.0,0.00015118,2]
[338694359,1726879853162,-500.0,0.00015118,2]
[338694360,1726879853172,-900.31,0.00015118,2]
[338694361,1726879853182,-500.0,0.00015118,2]
[338694362,1726879853193,-500.0,0.00015118,2]
[338694363,1726879853204,-500.0,0.00015118,2]
[338694364,1726879853213,-20508.73,0.00015118,2]
[338694365,1726879853223,-500.0,0.00015118,2]
[338694366,1726879853233,-684.07,0.00015118,2]
[338694367,1726879853244,-500.0,0.00015118,2]
[338694368,1726879853256,-3434.79,0.00015118,2]
[338694369,1726879853266,-500.0,0.00015118,2]
[338694370,1726879853275,-500.0,0.00015118,2]
[338694371,1726879853285,-500.0,0.00015118,2]
[338694372,1726879853294,-500.0,0.00015118,2]
[338694373,1726879853303,-500.0,0.00015118,2]
[338694374,1726879853314,-1296.89,0.00015118,2]
[338694375,1726879853323,-590.83,0.00015118,2]
[338694376,1726879853333,-500.0,0.00015118,2]
[338694377,1726879853342,-451.81,0.00015119,2]
[338694378,1726879853353,-500.0,0.00015119,2]
[338694379,1726879853363,-500.0,0.00015119,2]
[338694380,1726879853373,-500.0,0.00015119,2]
[338694381,1726879853382,-500.0,0.00015119,2]
[338694382,1726879853391,-500.0,0.00015119,2]
[338694383,1726879853400,-500.0,0.00015119,2]
[338694384,1726879853409,-151.0,0.00015119,2]
[338694385,1726879853420,-500.0,0.00015119,2]
[338694386,1726879853430,-155.608488,0.00015119,2]
[338694387,1726879853441,-155.608488,0.00015119,2]
[338694388,1726879853451,-500.0,0.00015119,2]
[338694389,1726879853460,-500.0,0.00015119,2]
[338694390,1726879853470,-500.0,0.00015119,2]
[338694391,1726879853479,-500.0,0.00015119,2]
[338694392,1726879853489,-500.0,0.00015119,2]
[338694393,1726879853498,-518.88,0.00015119,2]
[338694394,1726879853507,-500.0,0.00015119,2]
[338694395,1726879853516,-500.0,0.00015119,2]
[338694396,1726879853525,-500.0,0.00015119,2]
[338694397,1726879853534,-500.0,0.00015119,2]
[338694398,1726879853543,-500.0,0.00015119,2]
[338694399,1726879853553,-1007.68,0.00015119,2]
[338694400,1726879853562,-427.47,0.00015119,2]
[338694401,1726879853572,-500.0,0.00015119,2]
[338694402,1726879853581,-500.0,0.00015119,2]
[338694403,1726879853591,-500.0,0.00015119,2]
[338694404,1726879853600,-389.34,0.00015119,2]
[338694405,1726879853612,-500.0,0.00015119,2]
[338694406,1726879853622,-500.0,0.00015119,2]
[338694407,1726879853632,-500.0,0.00015119,2]
[338694408,1726879853642,-500.0,0.00015119,2]
[338694409,1726879853652,-500.0,0.00015119,2]
[338694410,1726879853661,-359.24514943,0.00015119,2]
[338694411,1726879853672,-529.69710641,0.00015119,2]
[338694412,1726879853683,-500.0,0.00015119,2]
[338694413,1726879853694,-500.0,0.00015119,2]
[338694414,1726879853705,-500.0,0.00015119,2]
[338694415,1726879853716,-500.0,0.00015119,2]
[338694416,1726879853727,-500.0,0.00015119,2]
[338694417,1726879853738,-500.0,0.00015119,2]
[338694418,1726879853747,-500.0,0.00015119,2]
[338694419,1726879853756,-633.1,0.00015119,2]
[338694420,1726879853766,-692.85,0.00015119,2]
[338694421,1726879853775,-500.0,0.00015119,2]
[338694422,1726879853784,-730.37,0.00015119,2]
[338694423,1726879853794,-500.0,0.00015119,2]
[338694424,1726879853803,-500.0,0.00015119,2]
[338694425,1726879853813,-500.0,0.00015119,2]
[338694426,1726879853823,-500.0,0.00015119,2]
[338694427,1726879853837,-500.0,0.00015119,2]
[338694428,1726879853847,-500.0,0.00015119,2]
[338694429,1726879853857,-500.0,0.00015119,2]
[338694430,1726879853867,-500.0,0.00015119,2]
[338694431,1726879853876,-500.0,0.00015119,2]
[338694432,1726879853887,-500.0,0.00015119,2]
[338694433,1726879853897,-500.0,0.00015119,2]
[338694434,1726879853907,-500.0,0.00015119,2]
[338694435,1726879853919,-500.0,0.00015119,2]
[338694436,1726879853930,-515.17,0.00015119,2]
[338694437,1726879853940,-500.0,0.00015119,2]
[338694438,1726879853950,-500.0,0.00015119,2]
[338694439,1726879853959,-587.33,0.00015119,2]
[338694440,1726879853970,-500.0,0.00015119,2]
[338694441,1726879853980,-500.0,0.00015119,2]
[338694442,1726879853990,-330.86102192,0.00015119,2]
[338694443,1726879854000,-500.0,0.00015119,2]
[338694444,1726879854011,-154.14,0.00015119,2]
[338694445,1726879854023,-500.0,0.00015119,2]
[338694446,1726879854032,-500.0,0.00015119,2]
[338694447,1726879854042,-500.0,0.00015119,2]
[338694448,1726879854053,-151.0,0.00015119,2]
[338694449,1726879854063,-500.0,0.00015119,2]
[338694450,1726879854074,-347.85724891,0.00015119,2]
[338694451,1726879854085,-500.0,0.00015119,2]
[338694452,1726879854096,-200.0,0.00015119,2]
[338694453,1726879854106,-500.0,0.00015119,2]
[338694454,1726879854116,-500.0,0.00015119,2]
[338694455,1726879854125,-500.0,0.00015119,2]
[338694456,1726879854134,-151.0,0.00015119,2]
[338694457,1726879854144,-312.84469,0.00015119,2]
[338694458,1726879854155,-500.0,0.00015119,2]
[338694459,1726879854165,-312.84469,0.00015119,2]
[338694460,1726879854176,-500.0,0.00015119,2]
[338694461,1726879854188,-265.278706,0.00015119,2]
[338694462,1726879854200,-204.3399437,0.00015119,2]
[338694463,1726879854210,-265.278706,0.00015119,2]
[338694464,1726879854221,-475.561999,0.00015119,2]
[338694465,1726879854233,-475.561999,0.00015119,2]
[338694466,1726879854245,-151.0,0.00015119,2]
[338694467,1726879854255,-500.0,0.00015119,2]
[338694468,1726879854265,-500.0,0.00015119,2]
[338694469,1726879854275,-335.73,0.00015119,2]
[338694470,1726879854285,-500.0,0.00015119,2]
[338694471,1726879854294,-705.85,0.00015119,2]
[338694472,1726879854304,-500.0,0.00015119,2]
[338694473,1726879854315,-500.0,0.00015119,2]
[338694474,1726879854325,-500.0,0.00015119,2]
[338694475,1726879854335,-1000.0,0.00015123,2]
[338694476,1726879854346,-377.27972,0.00015139,2]
[338694477,1726879854356,-151.0,0.00015139,2]
[338694479,1726879854366,-500.0,0.00015139,2]
[338694480,1726879854377,-500.0,0.00015139,2]
[338694481,1726879854387,-830.32,0.00015139,2]
[338694482,1726879854397,-500.0,0.0001514,2]
[338694483,1726879854408,-500.0,0.0001514,2]
[338694484,1726879854420,-500.0,0.0001514,2]
[338694485,1726879854438,-500.0,0.0001514,2]
[338694486,1726879854449,-500.0,0.0001514,2]
[338694487,1726879854459,-897.55,0.0001514,2]
[338694488,1726879854469,-500.0,0.0001514,2]
[338694489,1726879854480,-500.0,0.0001514,2]
[338694490,1726879854491,-500.0,0.0001514,2]
[338694491,1726879854501,-500.0,0.0001514,2]
[338694492,1726879854512,-500.0,0.0001514,2]
[338694493,1726879854523,-603.39,0.0001514,2]
[338694494,1726879854533,-500.0,0.0001514,2]
[338694495,1726879854543,-500.0,0.0001514,2]
[338694496,1726879854554,-568.58,0.0001514,2]
[338694497,1726879854563,-500.0,0.0001514,2]
[338694498,1726879854573,-569.83,0.0001514,2]
[338694499,1726879854583,-194.746917,0.0001514,2]
[338694500,1726879854594,-194.746917,0.0001514,2]
[338694501,1726879854604,-500.0,0.0001514,2]
[338694502,1726879854613,-500.0,0.0001514,2]
[338694503,1726879854623,-500.0,0.0001514,2]
[338694504,1726879854632,-500.0,0.0001514,2]
[338694505,1726879854642,-500.0,0.0001514,2]
[338694506,1726879854651,-151.0,0.0001514,2]
[338694507,1726879854661,-500.0,0.0001514,2]
[338694508,1726879854674,-151.0,0.0001514,2]
[338694509,1726879854684,-151.0,0.0001514,2]
[338694510,1726879854693,-151.0,0.0001514,2]
[338694511,1726879854703,-220.435812,0.0001514,2]
[338694512,1726879854712,-220.435812,0.0001514,2]
[338694513,1726879854721,-151.0,0.0001514,2]
[338694514,1726879854731,-598.278904,0.0001514,2]
[338694515,1726879854740,-598.278904,0.0001514,2]
[338694516,1726879854749,-393.97773,0.0001514,2]
[338694517,1726879854759,-393.97773,0.0001514,2]
[338694518,1726879854768,-151.0,0.0001514,2]
[338694519,1726879854778,-151.0,0.00015148,2]
[338694520,1726879854787,-151.0,0.00015148,2]
[338694521,1726879854797,-151.0,0.00015148,2]
[338694522,1726879854807,-253.28224,0.00015148,2]
[338694523,1726879854816,-253.28224,0.00015148,2]
[338694524,1726879854826,-151.0,0.00015148,2]
[338694525,1726879854838,-287.816228,0.00015148,2]
[338694526,1726879854848,-151.0,0.00015148,2]
[338694527,1726879854857,-155.608488,0.00015148,2]
[338694528,1726879854866,-155.608488,0.00015148,2]
[338694529,1726879854877,-331.77797517,0.00015148,2]
[338694530,1726879854886,-12068.34358043,0.00015148,2]
[338694531,1726879854896,-151.0,0.00015152,2]
[338694532,1726879854906,-151.0,0.0001516,2]
[338694533,1726879854918,-318.18412294,0.00015165,2]
[338694534,1726879854927,-500.0,0.00015165,2]
[338694535,1726879854937,-513.64292553,0.00015187,2]
[338694536,1726879854946,-500.0,0.00015187,2]
[338694537,1726879854956,-500.0,0.00015187,2]
[338694538,1726879854965,-500.0,0.00015211,2]
[338694539,1726879854974,-167.83288246,0.0001539,2]
[338694540,1726879854984,-545.43711959,0.0001539,2]
[338694541,1726879854995,-500.0,0.0001539,2]
[338694542,1726879855006,-659.61,0.0001539,2]
[338694543,1726879855016,-500.0,0.0001539,2]
[338694544,1726879855027,-500.0,0.0001539,2]
[338694545,1726879855037,-500.0,0.0001539,2]
[338694546,1726879855049,-523.6,0.0001539,2]
[338694547,1726879855059,-500.0,0.0001539,2]
[338694548,1726879855071,-500.0,0.0001539,2]
[338694549,1726879855083,-500.0,0.0001539,2]
[338694550,1726879855094,-518.96,0.0001539,2]
[338694551,1726879855106,-577.68717868,0.0001539,2]
[338694552,1726879855119,-500.0,0.0001539,2]
[338694553,1726879855128,-291.09388342,0.0001539,2]
[338694554,1726879855140,-257.911186,0.0001539,2]
[338694555,1726879855152,-626.816533,0.0001539,2]
[338694556,1726879855162,-626.816533,0.0001539,2]
[338694557,1726879855173,-500.0,0.0001539,2]
[338694558,1726879855184,-500.0,0.0001539,2]
[338694559,1726879855195,-500.0,0.0001539,2]
[338694560,1726879855207,-500.0,0.00015392,2]
[338694561,1726879855217,-184.609961,0.00015392,2]
[338694562,1726879855229,-184.609961,0.00015392,2]
[338694563,1726879855239,-500.0,0.00015392,2]
[338694564,1726879855252,-500.0,0.00015392,2]
[338694565,1726879855262,-500.0,0.00015392,2]
[338694566,1726879855274,-500.0,0.00015392,2]
[338694567,1726879855285,-667.31,0.00015392,2]
[338694568,1726879855297,-500.0,0.00015392,2]
[338694569,1726879855308,-500.0,0.00015392,2]
[338694570,1726879855319,-900.31,0.00015392,2]
[338694571,1726879855329,-500.0,0.00015392,2]
[338694572,1726879855339,-500.0,0.00015392,2]
[338694573,1726879855349,-500.0,0.00015392,2]
[338694574,1726879855359,-20508.73,0.00015392,2]
[338694575,1726879855370,-500.0,0.00015392,2]
[338694576,1726879855381,-684.07,0.00015392,2]
[338694577,1726879855394,-500.0,0.00015392,2]
[338694578,1726879855404,-3434.79,0.00015392,2]
[338694579,1726879855414,-500.0,0.00015392,2]
[338694580,1726879855423,-500.0,0.00015392,2]
[338694581,1726879855434,-500.0,0.00015392,2]
[338694582,1726879855445,-500.0,0.00015392,2]
[338694583,1726879855457,-500.0,0.00015392,2]
[338694584,1726879855466,-1296.89,0.00015392,2]
[338694585,1726879855476,-626.47,0.00015392,2]
[338694586,1726879855486,-603.03937329,0.00015393,2]
[338694587,1726879855498,-500.0,0.00015393,2]
[338694588,1726879855509,-500.0,0.00015393,2]
[338694589,1726879855519,-500.0,0.00015393,2]
[338694590,1726879855528,-500.0,0.00015393,2]
[338694591,1726879855538,-500.0,0.00015393,2]
[338694592,1726879855548,-178.21792266,0.00015393,2]
[338694593,1726879855558,-500.0,0.00015393,2]
[338694594,1726879855571,-500.0,0.00015393,2]
[338694595,1726879855582,-500.0,0.00015393,2]
[338694596,1726879855593,-500.0,0.00015393,2]
[338694597,1726879855603,-518.88,0.00015393,2]
[338694598,1726879855614,-500.0,0.00015393,2]
[338694599,1726879855624,-500.0,0.00015393,2]
[338694600,1726879855634,-500.0,0.00015393,2]
[338694601,1726879855643,-500.0,0.00015393,2]
[338694602,1726879855653,-1007.68,0.00015393,2]
[338694603,1726879855662,-500.0,0.00015393,2]
[338694604,1726879855673,-151.0,0.00015393,2]
[338694605,1726879855683,-500.0,0.00015393,2]
[338694606,1726879855693,-151.0,0.00015393,2]
[338694607,1726879855702,-500.0,0.00015393,2]
[338694608,1726879855712,-500.0,0.00015393,2]
[338694609,1726879855721,-183.54,0.00015393,2]
[338694610,1726879855731,-500.0,0.00015393,2]
[338694611,1726879855741,-500.0,0.00015393,2]
[338694612,1726879855751,-500.0,0.00015393,2]
[338694613,1726879855760,-500.0,0.00015393,2]
[338694614,1726879855770,-500.0,0.00015393,2]
[338694615,1726879855780,-500.0,0.00015393,2]
[338694616,1726879855791,-491.838642,0.00015393,2]
[338694617,1726879855801,-491.838642,0.00015393,2]
[338694618,1726879855811,-500.0,0.00015393,2]
[338694619,1726879855821,-500.0,0.00015393,2]
[338694620,1726879855833,-500.0,0.00015393,2]
[338694621,1726879855842,-500.0,0.00015393,2]
[338694622,1726879855853,-633.1,0.00015393,2]
[338694623,1726879855863,-692.85,0.00015393,2]
[338694624,1726879855872,-500.0,0.00015393,2]
[338694625,1726879856007,-730.37,0.00015393,2]
[338694626,1726879856017,-500.0,0.00015393,2]
[338694627,1726879856026,-500.0,0.00015393,2]
[338694628,1726879856035,-500.0,0.00015393,2]
[338694629,1726879856044,-243.35,0.00015393,2]
[338694630,1726879856054,-500.0,0.00015393,2]
[338694631,1726879856063,-500.0,0.00015393,2]
[338694632,1726879856072,-500.0,0.00015393,2]
[338694633,1726879856082,-500.0,0.00015393,2]
[338694634,1726879856091,-500.0,0.00015393,2]
[338694635,1726879856100,-500.0,0.00015393,2]
[338694636,1726879856109,-500.0,0.00015393,2]
[338694637,1726879856118,-500.0,0.00015393,2]
[338694638,1726879856127,-515.17,0.00015393,2]
[338694639,1726879856136,-500.0,0.00015393,2]
[338694640,1726879856145,-500.0,0.00015393,2]
[338694641,1726879856154,-500.0,0.00015393,2]
[338694642,1726879856164,-500.0,0.00015393,2]
[338694643,1726879856173,-500.0,0.00015393,2]
[338694644,1726879856182,-500.0,0.00015393,2]
[338694645,1726879856192,-200.0,0.00015393,2]
[338694646,1726879856201,-500.0,0.00015393,2]
[338694647,1726879856210,-468.02,0.00015393,2]